bitfinex/quotes_BTCUSD_20230901
["timestamp","ask_amount","ask_price","bid_price","bid_amount"]
[1693538756167,2.91669813,26076.0,26075.0,0.25]
[1693538756377,2.91615813,26076.0,26075.0,0.25]
[1693538756602,2.91621813,26076.0,26075.0,0.25]
[1693538756761,2.91627813,26076.0,26075.0,0.25]
[1693538756970,2.91639813,26076.0,26075.0,0.25]
[1693538757189,2.52937135,26076.0,26075.0,0.25]
[1693538757389,2.53039135,26076.0,26075.0,0.25]
[1693538757588,2.53063135,26076.0,26075.0,0.25]
[1693538757806,2.53057135,26076.0,26075.0,0.25]
[1693538757986,2.53063135,26076.0,26075.0,0.25]
[1693538758185,2.84195844,26076.0,26075.0,0.25]
[1693538758395,2.84069844,26076.0,26075.0,0.25]
[1693538758634,2.84249844,26076.0,26075.0,0.25]
[1693538758836,2.84255844,26076.0,26075.0,0.25]
[1693538759047,2.84027844,26076.0,26075.0,0.25]
[1693538759359,2.84117844,26076.0,26075.0,0.25]
[1693538759559,2.84123844,26076.0,26075.0,0.25]
[1693538759887,2.84255844,26076.0,26075.0,0.25]
[1693538760069,2.84135844,26076.0,26075.0,0.25]
[1693538760270,1.22642144,26076.0,26075.0,0.25]
[1693538760470,0.91533435,26076.0,26075.0,0.25020334]
[1693538762200,1.12318311,26076.0,26075.0,0.25020334]
[1693538762854,1.24138311,26076.0,26075.0,0.25020334]
[1693538769537,1.47685111,26076.0,26075.0,0.25020334]
[1693538769947,1.54501349,26076.0,26075.0,0.25020334]
[1693538771218,1.47685111,26076.0,26075.0,0.25020334]
[1693538773467,1.24122659,26076.0,26075.0,0.25020334]
[1693538778561,2.62900948,26076.0,26075.0,0.25020334]
[1693538778711,2.50882859,26076.0,26075.0,0.25020334]
[1693538778922,2.50774859,26076.0,26075.0,0.25020334]
[1693538779115,3.08286959,26076.0,26075.0,0.25020334]
[1693538779298,3.08256959,26076.0,26075.0,0.25020334]
[1693538779501,3.08160959,26076.0,26075.0,0.25020334]
[1693538779703,3.08130959,26076.0,26075.0,0.25020334]
[1693538779904,3.08082959,26076.0,26075.0,0.25020334]
[1693538780100,3.08058959,26076.0,26075.0,0.25020334]
[1693538780331,3.08106959,26076.0,26075.0,0.25020334]
[1693538780557,3.08100959,26076.0,26075.0,0.25020334]
[1693538780758,3.07998959,26076.0,26075.0,0.25020334]
[1693538780961,3.07836959,26076.0,26075.0,0.25020334]
[1693538781191,3.07800959,26076.0,26075.0,0.25020334]
[1693538781357,3.07782959,26076.0,26075.0,0.25020334]
[1693538781540,3.07728959,26076.0,26075.0,0.25020334]
[1693538781738,3.07722959,26076.0,26075.0,0.25020334]
[1693538781983,3.07692959,26076.0,26075.0,0.25020334]
[1693538782210,3.07608959,26076.0,26075.0,0.25020334]
[1693538782422,3.07596959,26076.0,26075.0,0.25020334]
[1693538782584,3.07578959,26076.0,26075.0,0.25020334]
[1693538782764,3.07560959,26076.0,26075.0,0.25020334]
[1693538782969,3.07542959,26076.0,26075.0,0.25020334]
[1693538783177,3.07434959,26076.0,26075.0,0.25020334]
[1693538783384,3.07452959,26076.0,26075.0,0.25020334]
[1693538783559,3.07440959,26076.0,26075.0,0.25020334]
[1693538783757,3.07416959,26076.0,26075.0,0.25020334]
[1693538784022,3.07404959,26076.0,26075.0,0.25020334]
[1693538784255,3.07338959,26076.0,26075.0,0.25020334]
[1693538784411,3.07386959,26076.0,26075.0,0.25020334]
[1693538784781,3.07338959,26076.0,26075.0,0.25020334]
[1693538784987,2.49766859,26076.0,26075.0,0.25020334]
[1693538785168,2.49676859,26076.0,26075.0,0.25020334]
[1693538785369,2.49526859,26076.0,26075.0,0.25020334]
[1693538785591,2.49514859,26076.0,26075.0,0.25020334]
[1693538785933,2.49682859,26076.0,26075.0,0.25020334]
[1693538786122,2.49658859,26076.0,26075.0,0.25020334]
[1693538786475,2.48728859,26076.0,26075.0,0.25020334]
[1693538786682,2.42146859,26076.0,26075.0,0.25020334]
[1693538787674,2.48698859,26076.0,26075.0,0.25020334]
[1693538787874,2.48608859,26076.0,26075.0,0.25020334]
[1693538788118,2.48620859,26076.0,26075.0,0.25020334]
[1693538788417,2.42146859,26076.0,26075.0,0.25020334]
[1693538798524,2.57125448,26076.0,26075.0,0.25020334]
[1693538798777,3.27177548,26076.0,26075.0,0.25020334]
[1693538799059,3.27093548,26076.0,26075.0,0.25020334]
[1693538799320,3.27081548,26076.0,26075.0,0.25020334]
[1693538799523,3.54416467,26076.0,26075.0,0.25020334]
[1693538799726,3.54314467,26076.0,26075.0,0.25020334]
[1693538799902,3.54266467,26076.0,26075.0,0.25020334]
[1693538800104,3.54140467,26076.0,26075.0,0.25020334]
[1693538800301,3.54110467,26076.0,26075.0,0.25020334]
[1693538800505,3.54074467,26076.0,26075.0,0.25020334]
[1693538800706,3.54044467,26076.0,26075.0,0.25020334]
[1693538800915,3.26577548,26076.0,26075.0,0.25020334]
[1693538801139,3.51800571,26076.0,26075.0,0.25020334]
[1693538801342,3.26397548,26076.0,26075.0,0.25020334]
[1693538801517,3.26367548,26076.0,26075.0,0.25020334]
[1693538801725,3.5129418,26076.0,26075.0,0.25020334]
[1693538801861,3.5127618,26076.0,26075.0,0.25020334]
[1693538802072,3.5100618,26076.0,26075.0,0.25020334]
[1693538802290,3.5086218,26076.0,26075.0,0.25020334]
[1693538802532,3.5048418,26076.0,26075.0,0.25020334]
[1693538802733,3.5031018,26076.0,26075.0,0.25020334]
[1693538802915,3.5028618,26076.0,26075.0,0.25020334]
[1693538803267,3.4888818,26076.0,26075.0,0.25020334]
[1693538803485,3.4879218,26076.0,26075.0,0.25020334]
[1693538803671,3.4871418,26076.0,26075.0,0.25020334]
[1693538803842,3.4872018,26076.0,26075.0,0.25020334]
[1693538804161,3.4888818,26076.0,26075.0,0.25020334]
[1693538804375,3.4889418,26076.0,26075.0,0.25020334]
[1693538804574,3.4891218,26076.0,26075.0,0.25020334]
[1693538804707,3.4887618,26076.0,26075.0,0.25020334]
[1693538804906,3.4887018,26076.0,26075.0,0.25020334]
[1693538805110,3.4884618,26076.0,26075.0,0.25020334]
[1693538805319,3.4887018,26076.0,26075.0,0.25020334]
[1693538805559,3.4886418,26076.0,26075.0,0.25020334]
[1693538805718,3.4888818,26076.0,26075.0,0.25020334]
[1693538805920,3.4883418,26076.0,26075.0,0.25020334]
[1693538806121,3.4881618,26076.0,26075.0,0.25020334]
[1693538806325,3.4881018,26076.0,26075.0,0.25020334]
[1693538806527,3.4879818,26076.0,26075.0,0.25020334]
[1693538806783,3.4879218,26076.0,26075.0,0.25020334]
[1693538807054,3.4878018,26076.0,26075.0,0.25020334]
[1693538807372,3.4884018,26076.0,26075.0,0.25020334]
[1693538807549,3.4894218,26076.0,26075.0,0.25020334]
[1693538807746,3.4896618,26076.0,26075.0,0.25020334]
[1693538807907,3.4897218,26076.0,26075.0,0.25020334]
[1693538808111,3.4896018,26076.0,26075.0,0.25020334]
[1693538808317,3.4897818,26076.0,26075.0,0.25020334]
[1693538808682,3.4894818,26076.0,26075.0,0.25020334]
[1693538808894,3.4894218,26076.0,26075.0,0.25020334]
[1693538809105,3.4893018,26076.0,26075.0,0.25020334]
[1693538809308,3.80020889,26076.0,26075.0,0.25020334]
[1693538809494,3.79966889,26076.0,26075.0,0.25020334]
[1693538809706,3.79894889,26076.0,26075.0,0.25020334]
[1693538810099,3.79888889,26076.0,26075.0,0.25020334]
[1693538810266,3.79882889,26076.0,26075.0,0.25020334]
[1693538810619,3.79822889,26076.0,26075.0,0.25020334]
[1693538810819,3.79930889,26076.0,26075.0,0.25020334]
[1693538811033,3.79888889,26076.0,26075.0,0.25020334]
[1693538811184,3.79870889,26076.0,26075.0,0.25020334]
[1693538811360,3.79846889,26076.0,26075.0,0.25020334]
[1693538811571,3.79858889,26076.0,26075.0,0.25020334]
[1693538811769,3.79840889,26076.0,26075.0,0.25020334]
[1693538812240,3.79834889,26076.0,26075.0,0.25020334]
[1693538812444,3.79822889,26076.0,26075.0,0.25020334]
[1693538812596,3.79768889,26076.0,26075.0,0.25020334]
[1693538812797,3.79732889,26076.0,26075.0,0.25020334]
[1693538813048,3.79720889,26076.0,26075.0,0.25020334]
[1693538813264,3.79696889,26076.0,26075.0,0.25020334]
[1693538813569,3.79678889,26076.0,26075.0,0.25020334]
[1693538813791,3.79642889,26076.0,26075.0,0.25020334]
[1693538813969,3.79636889,26076.0,26075.0,0.25020334]
[1693538814176,3.79564889,26076.0,26075.0,0.25020334]
[1693538814419,3.79144889,26076.0,26075.0,0.25020334]
[1693538814621,3.79150889,26076.0,26075.0,0.25020334]
[1693538814804,3.79108889,26076.0,26075.0,0.25020334]
[1693538815004,3.79150889,26076.0,26075.0,0.25020334]
[1693538815210,3.79102889,26076.0,26075.0,0.25020334]
[1693538815416,3.79054889,26076.0,26075.0,0.25020334]
[1693538815764,3.79072889,26076.0,26075.0,0.25020334]
[1693538815978,3.78988889,26076.0,26075.0,0.25020334]
[1693538816405,3.78982889,26076.0,26075.0,0.25020334]
[1693538816747,3.78970889,26076.0,26075.0,0.25020334]
[1693538816919,3.78976889,26076.0,26075.0,0.25020334]
[1693538817080,3.78952889,26076.0,26075.0,0.25020334]
[1693538817277,3.78988889,26076.0,26075.0,0.25020334]
[1693538817485,3.79060889,26076.0,26075.0,0.25020334]
[1693538817707,3.79180889,26076.0,26075.0,0.25020334]
[1693538818070,3.79162889,26076.0,26075.0,0.25020334]
[1693538818292,3.79156889,26076.0,26075.0,0.25020334]
[1693538818728,3.79468889,26076.0,26075.0,0.25020334]
[1693538818945,3.79474889,26076.0,26075.0,0.25020334]
[1693538819096,3.79468889,26076.0,26075.0,0.25020334]
[1693538819512,3.79426889,26076.0,26075.0,0.25020334]
[1693538819718,3.79420889,26076.0,26075.0,0.25020334]
[1693538820163,3.79444889,26076.0,26075.0,0.25020334]
[1693538820370,3.79204889,26076.0,26075.0,0.25020334]
[1693538820579,3.79162889,26076.0,26075.0,0.25020334]
[1693538820748,3.79144889,26076.0,26075.0,0.25020334]
[1693538820952,3.79150889,26076.0,26075.0,0.25020334]
[1693538821195,3.79102889,26076.0,26075.0,0.25020334]
[1693538821406,3.79084889,26076.0,26075.0,0.25020334]
[1693538821552,3.79012889,26076.0,26075.0,0.25020334]
[1693538821758,3.79198889,26076.0,26075.0,0.25020334]
[1693538821967,3.79288889,26076.0,26075.0,0.25020334]
[1693538822192,3.79282889,26076.0,26075.0,0.25020334]
[1693538822412,3.79240889,26076.0,26075.0,0.25020334]
[1693538822739,3.79228889,26076.0,26075.0,0.25020334]
[1693538823037,3.79210889,26076.0,26075.0,0.25020334]
[1693538823338,3.79204889,26076.0,26075.0,0.25020334]
[1693538823546,3.79018889,26076.0,26075.0,0.25020334]
[1693538823721,3.78982889,26076.0,26075.0,0.25020334]
[1693538823935,3.78976889,26076.0,26075.0,0.25020334]
[1693538824144,3.21026789,26076.0,26075.0,0.25020334]
[1693538824462,3.21032789,26076.0,26075.0,0.25020334]
[1693538824617,3.21020789,26076.0,26075.0,0.25020334]
[1693538824816,3.21086789,26076.0,26075.0,0.25020334]
[1693538825482,3.21110789,26076.0,26075.0,0.25020334]
[1693538825833,3.21116789,26076.0,26075.0,0.25020334]
[1693538826007,3.78640889,26076.0,26075.0,0.25020334]
[1693538826391,3.78646889,26076.0,26075.0,0.25020334]
[1693538826549,3.78658889,26076.0,26075.0,0.25020334]
[1693538826750,3.78694889,26076.0,26075.0,0.25020334]
[1693538826951,3.78676889,26076.0,26075.0,0.25020334]
[1693538827194,3.78730889,26076.0,26075.0,0.25020334]
[1693538827720,3.78826889,26076.0,26075.0,0.25020334]
[1693538828044,3.78916889,26076.0,26075.0,0.25020334]
[1693538828230,3.78922889,26076.0,26075.0,0.25020334]
[1693538828567,3.79084889,26076.0,26075.0,0.25020334]
[1693538828767,3.79108889,26076.0,26075.0,0.25020334]
[1693538828968,3.79084889,26076.0,26075.0,0.25020334]
[1693538829643,3.79078889,26076.0,26075.0,0.25020334]
[1693538830056,3.79072889,26076.0,26075.0,0.25020334]
[1693538830362,3.79066889,26076.0,26075.0,0.25020334]
[1693538830599,3.79060889,26076.0,26075.0,0.25020334]
[1693538831004,3.79048889,26076.0,26075.0,0.25020334]
[1693538831361,3.79090889,26076.0,26075.0,0.25020334]
[1693538831558,3.79084889,26076.0,26075.0,0.25020334]
[1693538831764,3.79060889,26076.0,26075.0,0.25020334]
[1693538832170,3.79048889,26076.0,26075.0,0.25020334]
[1693538832349,3.79066889,26076.0,26075.0,0.25020334]
[1693538832546,3.78868889,26076.0,26075.0,0.25020334]
[1693538832967,3.78874889,26076.0,26075.0,0.25020334]
[1693538833274,3.78904889,26076.0,26075.0,0.25020334]
[1693538833471,3.78898889,26076.0,26075.0,0.25020334]
[1693538833715,3.78934889,26076.0,26075.0,0.25020334]
[1693538833918,3.78904889,26076.0,26075.0,0.25020334]
[1693538834289,3.78946889,26076.0,26075.0,0.25020334]
[1693538834493,3.78904889,26076.0,26075.0,0.25020334]
[1693538835047,3.78898889,26076.0,26075.0,0.25020334]
[1693538835226,3.78904889,26076.0,26075.0,0.25020334]
[1693538835523,3.78898889,26076.0,26075.0,0.25020334]
[1693538835931,3.78946889,26076.0,26075.0,0.25020334]
[1693538836094,3.78940889,26076.0,26075.0,0.25020334]
[1693538836292,3.78994889,26076.0,26075.0,0.25020334]
[1693538836480,3.78928889,26076.0,26075.0,0.25020334]
[1693538836682,3.78922889,26076.0,26075.0,0.25020334]
[1693538836882,3.78928889,26076.0,26075.0,0.25020334]
[1693538837106,3.78922889,26076.0,26075.0,0.25020334]
[1693538837283,3.78880889,26076.0,26075.0,0.25020334]
[1693538837525,3.79120889,26076.0,26075.0,0.25020334]
[1693538837731,3.79078889,26076.0,26075.0,0.25020334]
[1693538837934,3.79072889,26076.0,26075.0,0.25020334]
[1693538838267,3.79066889,26076.0,26075.0,0.25020334]
[1693538838451,3.79060889,26076.0,26075.0,0.25020334]
[1693538838603,3.78982889,26076.0,26075.0,0.25020334]
[1693538839143,3.78976889,26076.0,26075.0,0.25020334]
[1693538839279,3.78832889,26076.0,26075.0,0.25020334]
[1693538839477,3.78724889,26076.0,26075.0,0.25020334]
[1693538839677,3.78598889,26076.0,26075.0,0.25020334]
[1693538839945,3.78526889,26076.0,26075.0,0.25020334]
[1693538840080,3.78400889,26076.0,26075.0,0.25020334]
[1693538840284,3.78406889,26076.0,26075.0,0.25020334]
[1693538840485,3.78418889,26076.0,26075.0,0.25020334]
[1693538841115,3.78580889,26076.0,26075.0,0.25020334]
[1693538841312,3.78592889,26076.0,26075.0,0.25020334]
[1693538841518,3.78664889,26076.0,26075.0,0.25020334]
[1693538842255,3.78790889,26076.0,26075.0,0.25020334]
[1693538842460,3.78844889,26076.0,26075.0,0.25020334]
[1693538842708,3.78898889,26076.0,26075.0,0.25020334]
[1693538842885,3.78856889,26076.0,26075.0,0.25020334]
[1693538843015,3.78844889,26076.0,26075.0,0.25020334]
[1693538843494,3.78814889,26076.0,26075.0,0.25020334]
[1693538843697,3.78820889,26076.0,26075.0,0.25020334]
[1693538843841,3.78814889,26076.0,26075.0,0.25020334]
[1693538844041,3.78784889,26076.0,26075.0,0.25020334]
[1693538844254,3.78724889,26076.0,26075.0,0.25020334]
[1693538844706,3.78790889,26076.0,26075.0,0.25020334]
[1693538844911,3.78760889,26076.0,26075.0,0.25020334]
[1693538845150,3.78700889,26076.0,26075.0,0.25020334]
[1693538845307,3.78712889,26076.0,26075.0,0.25020334]
[1693538845713,3.78760889,26076.0,26075.0,0.25020334]
[1693538845907,3.78748889,26076.0,26075.0,0.25020334]
[1693538846115,3.78778889,26076.0,26075.0,0.25020334]
[1693538846372,3.78772889,26076.0,26075.0,0.25020334]
[1693538846671,3.78784889,26076.0,26075.0,0.25020334]
[1693538846850,3.78958889,26076.0,26075.0,0.25020334]
[1693538847052,3.79036889,26076.0,26075.0,0.25020334]
[1693538847250,3.78988889,26076.0,26075.0,0.25020334]
[1693538847453,3.78994889,26076.0,26075.0,0.25020334]
[1693538847657,3.78988889,26076.0,26075.0,0.25020334]
[1693538847854,3.78994889,26076.0,26075.0,0.25020334]
[1693538848060,3.78976889,26076.0,26075.0,0.25020334]
[1693538848261,3.78964889,26076.0,26075.0,0.25020334]
[1693538848680,3.78958889,26076.0,26075.0,0.25020334]
[1693538849024,3.78952889,26076.0,26075.0,0.25020334]
[1693538849375,3.78958889,26076.0,26075.0,0.25020334]
[1693538849588,3.78910889,26076.0,26075.0,0.25020334]
[1693538849756,3.78880889,26076.0,26075.0,0.25020334]
[1693538849961,3.78874889,26076.0,26075.0,0.25020334]
[1693538850386,3.78910889,26076.0,26075.0,0.25020334]
[1693538850679,3.78838889,26076.0,26075.0,0.25020334]
[1693538850880,3.78892889,26076.0,26075.0,0.25020334]
[1693538851113,3.78934889,26076.0,26075.0,0.25020334]
[1693538851316,3.78928889,26076.0,26075.0,0.25020334]
[1693538851539,3.78922889,26076.0,26075.0,0.25020334]
[1693538852097,3.78952889,26076.0,26075.0,0.25020334]
[1693538852298,3.78976889,26076.0,26075.0,0.25020334]
[1693538852517,3.78958889,26076.0,26075.0,0.25020334]
[1693538852723,3.78946889,26076.0,26075.0,0.25020334]
[1693538852929,3.78976889,26076.0,26075.0,0.25020334]
[1693538853249,3.79072889,26076.0,26075.0,0.25020334]
[1693538853610,3.79146682,26076.0,26075.0,0.25020334]
[1693538853996,3.79140682,26076.0,26075.0,0.25020334]
[1693538854191,3.21616582,26076.0,26075.0,0.25020334]
[1693538854394,3.21610582,26076.0,26075.0,0.25020334]
[1693538854597,3.21616582,26076.0,26075.0,0.25020334]
[1693538854793,3.21610582,26076.0,26075.0,0.25020334]
[1693538855005,3.21598582,26076.0,26075.0,0.25020334]
[1693538855451,3.21586582,26076.0,26075.0,0.25020334]
[1693538855776,3.21580582,26076.0,26075.0,0.25020334]
[1693538855976,3.21436582,26076.0,26075.0,0.25020334]
[1693538856278,3.21316582,26076.0,26075.0,0.25020334]
[1693538856442,3.21310582,26076.0,26075.0,0.25020334]
[1693538856638,3.21106582,26076.0,26075.0,0.25020334]
[1693538856838,3.21088582,26076.0,26075.0,0.25020334]
[1693538857059,3.21074505,26076.0,26075.0,0.25020334]
[1693538857377,3.21086505,26076.0,26075.0,0.25020334]
[1693538857584,3.21080505,26076.0,26075.0,0.25020334]
[1693538857788,3.21074505,26076.0,26075.0,0.25020334]
[1693538858193,3.21086505,26076.0,26075.0,0.25020334]
[1693538858327,3.21026505,26076.0,26075.0,0.25020334]
[1693538858550,3.21080505,26076.0,26075.0,0.25020334]
[1693538858755,3.21098505,26076.0,26075.0,0.25020334]
[1693538858982,3.21074505,26076.0,26075.0,0.25020334]
[1693538859193,3.21242505,26076.0,26075.0,0.25020334]
[1693538859392,3.21176505,26076.0,26075.0,0.25020334]
[1693538859593,3.21182505,26076.0,26075.0,0.25020334]
[1693538859859,3.21176505,26076.0,26075.0,0.25020334]
[1693538860262,3.21164505,26076.0,26075.0,0.25020334]
[1693538860564,3.21170505,26076.0,26075.0,0.25020334]
[1693538860982,3.21182505,26076.0,26075.0,0.25020334]
[1693538861185,3.21176505,26076.0,26075.0,0.25020334]
[1693538861325,3.21224505,26076.0,26075.0,0.25020334]
[1693538861678,3.21296505,26076.0,26075.0,0.25020334]
[1693538861851,3.21206505,26076.0,26075.0,0.25020334]
[1693538862175,3.21194505,26076.0,26075.0,0.25020334]
[1693538862384,3.21188505,26076.0,26075.0,0.25020334]
[1693538862619,3.21194505,26076.0,26075.0,0.25020334]
[1693538862798,3.21182505,26076.0,26075.0,0.25020334]
[1693538863376,3.21194505,26076.0,26075.0,0.25020334]
[1693538863581,3.21188505,26076.0,26075.0,0.25020334]
[1693538863820,3.21194505,26076.0,26075.0,0.25020334]
[1693538864020,3.21164505,26076.0,26075.0,0.25020334]
[1693538864626,3.21098505,26076.0,26075.0,0.25020334]
[1693538864983,3.21026505,26076.0,26075.0,0.25020334]
[1693538865390,3.21032505,26076.0,26075.0,0.25020334]
[1693538865546,3.21086505,26076.0,26075.0,0.25020334]
[1693538865725,3.21218505,26076.0,26075.0,0.25020334]
[1693538865926,3.21278505,26076.0,26075.0,0.25020334]
[1693538866365,3.21284505,26076.0,26075.0,0.25020334]
[1693538866522,3.21230505,26076.0,26075.0,0.25020334]
[1693538866739,3.21260505,26076.0,26075.0,0.25020334]
[1693538866944,3.21248505,26076.0,26075.0,0.25020334]
[1693538867261,3.21242505,26076.0,26075.0,0.25020334]
[1693538867463,3.21236505,26076.0,26075.0,0.25020334]
[1693538867854,3.21554505,26076.0,26075.0,0.25020334]
[1693538868061,3.21506505,26076.0,26075.0,0.25020334]
[1693538868257,3.21500505,26076.0,26075.0,0.25020334]
[1693538868604,3.21506505,26076.0,26075.0,0.25020334]
[1693538868811,3.21494505,26076.0,26075.0,0.25020334]
[1693538869155,3.21386505,26076.0,26075.0,0.25020334]
[1693538869382,3.21242505,26076.0,26075.0,0.25020334]
[1693538869602,3.21134505,26076.0,26075.0,0.25020334]
[1693538870011,3.21104505,26076.0,26075.0,0.25020334]
[1693538870215,3.20876505,26076.0,26075.0,0.25020334]
[1693538870366,3.20726505,26076.0,26075.0,0.25020334]
[1693538870834,3.20714505,26076.0,26075.0,0.25020334]
[1693538871212,3.20858505,26076.0,26075.0,0.25020334]
[1693538871415,3.20846505,26076.0,26075.0,0.25020334]
[1693538871612,3.20876505,26076.0,26075.0,0.25020334]
[1693538871811,3.20858505,26076.0,26075.0,0.25020334]
[1693538872022,3.20840505,26076.0,26075.0,0.25020334]
[1693538872382,3.20864505,26076.0,26075.0,0.25020334]
[1693538872514,3.20786505,26076.0,26075.0,0.25020334]
[1693538872715,3.20774505,26076.0,26075.0,0.25020334]
[1693538872915,3.20780505,26076.0,26075.0,0.25020334]
[1693538873117,3.20786505,26076.0,26075.0,0.25020334]
[1693538873366,3.20834505,26076.0,26075.0,0.25020334]
[1693538873591,3.20822505,26076.0,26075.0,0.25020334]
[1693538874000,3.20414505,26076.0,26075.0,0.25020334]
[1693538874176,3.20552505,26076.0,26075.0,0.25020334]
[1693538874377,3.20528505,26076.0,26075.0,0.25020334]
[1693538874580,3.20444505,26076.0,26075.0,0.25020334]
[1693538874783,3.20312505,26076.0,26075.0,0.25020334]
[1693538875006,3.20318505,26076.0,26075.0,0.25020334]
[1693538875435,3.20324505,26076.0,26075.0,0.25020334]
[1693538875608,3.20330505,26076.0,26075.0,0.25020334]
[1693538875811,3.20318505,26076.0,26075.0,0.25020334]
[1693538876258,3.20324505,26076.0,26075.0,0.25020334]
[1693538876428,3.20270505,26076.0,26075.0,0.25020334]
[1693538876633,3.20192505,26076.0,26075.0,0.25020334]
[1693538876800,3.20120505,26076.0,26075.0,0.25020334]
[1693538876993,3.13352505,26076.0,26075.0,0.25020334]
[1693538878841,3.19820505,26076.0,26075.0,0.25020334]
[1693538879048,3.13352505,26076.0,26075.0,0.25020334]
[1693538880485,3.19916505,26076.0,26075.0,0.25020334]
[1693538880689,3.19922505,26076.0,26075.0,0.25020334]
[1693538880890,3.19928505,26076.0,26075.0,0.25020334]
[1693538881068,3.19922505,26076.0,26075.0,0.25020334]
[1693538881264,3.19886505,26076.0,26075.0,0.25020334]
[1693538881478,3.19838505,26076.0,26075.0,0.25020334]
[1693538881666,3.19832505,26076.0,26075.0,0.25020334]
[1693538881870,3.19838505,26076.0,26075.0,0.25020334]
[1693538882074,3.13352505,26076.0,26075.0,0.25020334]
[1693538882299,3.19898505,26076.0,26075.0,0.25020334]
[1693538882554,3.21836505,26076.0,26075.0,0.25020334]
[1693538882739,3.21824505,26076.0,26075.0,0.25020334]
[1693538882931,3.21830505,26076.0,26075.0,0.25020334]
[1693538883182,3.21824505,26076.0,26075.0,0.25020334]
[1693538883517,3.21818505,26076.0,26075.0,0.25020334]
[1693538883919,3.79384605,26076.0,26075.0,0.25020334]
[1693538884134,3.79402605,26076.0,26075.0,0.25020334]
[1693538884360,3.21848505,26076.0,26075.0,0.25020334]
[1693538884682,3.21692505,26076.0,26075.0,0.25020334]
[1693538884854,3.21614505,26076.0,26075.0,0.25020334]
[1693538885064,3.21608505,26076.0,26075.0,0.25020334]
[1693538885265,3.21584505,26076.0,26075.0,0.25020334]
[1693538885583,3.21446505,26076.0,26075.0,0.25020334]
[1693538885840,3.21434505,26076.0,26075.0,0.25020334]
[1693538886045,3.21428505,26076.0,26075.0,0.25020334]
[1693538886222,3.21416505,26076.0,26075.0,0.25020334]
[1693538886447,3.21422505,26076.0,26075.0,0.25020334]
[1693538886650,3.21404505,26076.0,26075.0,0.25020334]
[1693538886827,3.21482505,26076.0,26075.0,0.25020334]
[1693538887167,3.21476505,26076.0,26075.0,0.25020334]
[1693538887392,3.21470505,26076.0,26075.0,0.25020334]
[1693538887594,3.21314505,26076.0,26075.0,0.25020334]
[1693538887795,3.21296505,26076.0,26075.0,0.25020334]
[1693538887993,3.21308505,26076.0,26075.0,0.25020334]
[1693538888193,3.21302505,26076.0,26075.0,0.25020334]
[1693538888616,3.21356505,26076.0,26075.0,0.25020334]
[1693538888860,3.21350505,26076.0,26075.0,0.25020334]
[1693538889053,3.21452505,26076.0,26075.0,0.25020334]
[1693538889253,3.21446505,26076.0,26075.0,0.25020334]
[1693538889492,3.21440505,26076.0,26075.0,0.25020334]
[1693538889657,3.21410505,26076.0,26075.0,0.25020334]
[1693538889835,3.21398505,26076.0,26075.0,0.25020334]
[1693538890061,3.21404505,26076.0,26075.0,0.25020334]
[1693538890264,3.21392505,26076.0,26075.0,0.25020334]
[1693538890471,3.21404505,26076.0,26075.0,0.25020334]
[1693538890931,3.21392505,26076.0,26075.0,0.25020334]
[1693538891348,3.21188505,26076.0,26075.0,0.25020334]
[1693538891567,3.21230505,26076.0,26075.0,0.25020334]
[1693538891771,3.21218505,26076.0,26075.0,0.25020334]
[1693538891973,3.21146505,26076.0,26075.0,0.25020334]
[1693538892180,3.21152505,26076.0,26075.0,0.25020334]
[1693538892539,3.21146505,26076.0,26075.0,0.25020334]
[1693538892753,3.21140505,26076.0,26075.0,0.25020334]
[1693538892879,3.21134505,26076.0,26075.0,0.25020334]
[1693538893092,3.21140505,26076.0,26075.0,0.25020334]
[1693538893510,3.21176505,26076.0,26075.0,0.25020334]
[1693538893711,3.21152505,26076.0,26075.0,0.25020334]
[1693538893922,3.21140505,26076.0,26075.0,0.25020334]
[1693538894122,3.21152505,26076.0,26075.0,0.25020334]
[1693538894744,3.21188505,26076.0,26075.0,0.25020334]
[1693538894920,3.21182505,26076.0,26075.0,0.25020334]
[1693538895325,3.21170505,26076.0,26075.0,0.25020334]
[1693538895552,3.21296505,26076.0,26075.0,0.25020334]
[1693538895760,3.21230505,26076.0,26075.0,0.25020334]
[1693538895975,3.21272505,26076.0,26075.0,0.25020334]
[1693538896169,3.21296505,26076.0,26075.0,0.25020334]
[1693538896374,3.21308505,26076.0,26075.0,0.25020334]
[1693538896590,3.21242505,26076.0,26075.0,0.25020334]
[1693538897038,3.21236505,26076.0,26075.0,0.25020334]
[1693538897751,3.21290505,26076.0,26075.0,0.25020334]
[1693538897906,3.21350505,26076.0,26075.0,0.25020334]
[1693538898109,2.96969873,26076.0,26075.0,0.25020334]
[1693538898312,3.182391,26076.0,26075.0,0.25020334]
[1693538898513,3.757572,26076.0,26075.0,0.25020334]
[1693538898686,3.757692,26076.0,26075.0,0.25020334]
[1693538898898,3.757632,26076.0,26075.0,0.25020334]
[1693538899099,3.757452,26076.0,26075.0,0.25020334]
[1693538899320,3.757572,26076.0,26075.0,0.25020334]
[1693538899843,3.758052,26076.0,26075.0,0.25020334]
[1693538900053,3.757992,26076.0,26075.0,0.25020334]
[1693538900621,3.757932,26076.0,26075.0,0.25020334]
[1693538900829,3.757752,26076.0,26075.0,0.25020334]
[1693538901025,3.757272,26076.0,26075.0,0.25020334]
[1693538901227,3.756552,26076.0,26075.0,0.25020334]
[1693538901749,3.756492,26076.0,26075.0,0.25020334]
[1693538902312,3.54937973,26076.0,26075.0,0.25020334]
[1693538902515,3.54997973,26076.0,26075.0,0.25020334]
[1693538902721,3.76284172,26076.0,26075.0,0.25020334]
[1693538902917,3.76344172,26076.0,26075.0,0.25020334]
[1693538903121,3.76338172,26076.0,26075.0,0.25020334]
[1693538903407,3.76236172,26076.0,26075.0,0.25020334]
[1693538903613,3.76122172,26076.0,26075.0,0.25020334]
[1693538903783,3.76092172,26076.0,26075.0,0.25020334]
[1693538903990,3.76086172,26076.0,26075.0,0.25020334]
[1693538904195,4.14783589,26076.0,26075.0,0.25020334]
[1693538904403,4.14771589,26076.0,26075.0,0.25020334]
[1693538904623,4.14753589,26076.0,26075.0,0.25020334]
[1693538904841,4.14729589,26076.0,26075.0,0.25020334]
[1693538905000,4.14789589,26076.0,26075.0,0.25020334]
[1693538905201,4.14693589,26076.0,26075.0,0.25020334]
[1693538905401,4.14615589,26076.0,26075.0,0.25020334]
[1693538905730,4.14489589,26076.0,26075.0,0.25020334]
[1693538905954,4.14513589,26076.0,26075.0,0.25020334]
[1693538906154,4.14429589,26076.0,26075.0,0.25020334]
[1693538906560,4.14435589,26076.0,26075.0,0.25020334]
[1693538906761,4.14489589,26076.0,26075.0,0.25020334]
[1693538907255,4.14621589,26076.0,26075.0,0.25020334]
[1693538907682,4.14597589,26076.0,26075.0,0.25020334]
[1693538907862,4.14603589,26076.0,26075.0,0.25020334]
[1693538908246,4.14561589,26076.0,26075.0,0.25020334]
[1693538908445,3.75834172,26076.0,26075.0,0.25020334]
[1693538909134,3.75828172,26076.0,26075.0,0.25020334]
[1693538909339,3.75708172,26076.0,26075.0,0.25020334]
[1693538909576,3.75642172,26076.0,26075.0,0.25020334]
[1693538909775,3.75630172,26076.0,26075.0,0.25020334]